Cogmind - Beta 13 @@@ ROGUE MODE // 2024.04.12 @ 14:39:01 Player: luckinvolved Result: Destroyed by G-47 Trooper with Particle Gun Performance ------------- Evolutions (2) 1000 Regions Visited (4) 800 Robots Destroyed (53) 265 Value Destroyed (1837) 1837 Prototype IDs (7) 140 Alien Tech Used (0) 0 Bonus (-63) -63 TOTAL SCORE: 3979 Bonus ------- Follower Combat Kills 107 Friendly Fire -170 Cogmind --------- Core Integrity 0/550 Matter 285/300 Energy 68/100 System Corruption 0% Temperature Cool (9) Movement Walking (120) Location -8/Storage Parts ------- > --- POWER (1) -------- (None) > --- PROPULSION (4) --- Aluminum Leg Carbon-fiber Leg > --- UTILITY (4) ------ Advanced Heat Sink Medium Storage Unit Improved Signal Interpreter > --- WEAPON (2) ------- Precision Beam Rifle Heavy Assault Rifle > --- INVENTORY (10) --- Ion Engine Deuterium Engine Light Nuclear Core Light Nuclear Core Light Angular Momentum Engine Medium Matter Pod (100) Light Armor Plating Peak State ------------ > --- POWER ------------ Light Nuclear Core > --- PROPULSION ------- Flightbrick > --- UTILITY ---------- Medium Storage Unit Improved Signal Interpreter > --- WEAPON ----------- Improved EM Shotgun Precision Beam Rifle > --- INVENTORY -------- Ion Engine Spiked Treads Spiked Treads Beamcaster Heavy Assault Rifle [Rating: 51] Favorites ----------- Power Ion Engine Engine Ion Engine Power Core Light Nuclear Core Propulsion Light Treads Treads Light Treads Leg Carbon-fiber Leg Flight Unit Flightbrick Utility Scrap Shield Device Trap Scanner Storage Medium Storage Unit Processor Improved Signal Interpreter Protection Scrap Shield Weapon Heavy Assault Rifle Energy Gun Beam Rifle Ballistic Gun Heavy Assault Rifle Build | -11 -10 -10 -8 -8 ------- Run | Yrd Mat Sub Mat Sto Slots Evolved 4 | . . . 4 . Power . | . . . . . Propulsion 2 | . . . 2 . Utility 2 | . . . 2 . Weapon . | . . . . . Parts Attached 50 | 6 4 5 12 23 Power 9 | 1 1 . 3 4 Engine 6 | 1 1 . 1 3 Core 3 | . . . 2 1 Reactor . | . . . . . Propulsion 16 | 2 . 2 3 9 Treads 13 | 2 . 2 2 7 Leg 2 | . . . . 2 Wheel . | . . . . . Hover . | . . . . . Flight 1 | . . . 1 . Utility 9 | 1 1 1 2 4 Device 3 | . 1 . . 2 Storage 2 | 1 . . 1 . Processor 1 | . . . 1 . Hackware . | . . . . . Protection 3 | . . 1 . 2 Artifact . | . . . . . Weapon 16 | 2 2 2 4 6 Energy Gun 8 | . 1 1 3 3 Energy Cannon . | . . . . . Ballistic Gun 8 | 2 1 1 1 3 Ballistic Cannon . | . . . . . Launcher . | . . . . . Special Weapon . | . . . . . Impact Weapon . | . . . . . Slashing Weapon . | . . . . . Piercing Weapon . | . . . . . Special Melee Weapon . | . . . . . Unidentified Prototypes 7 | . . . 3 4 Parts Lost 16 | . . . 2 14 Power 3 | . . . 1 2 Propulsion 8 | . . . . 8 Utility 1 | . . . . 1 Weapon 4 | . . . 1 3 Highest Loss Streak 6 | . . . 1 6 To Critical Strikes 1 | . . . . 1 Average Slot Usage (%) 86 | . 97 85 50 87 Engine 10 | . 14 14 2 4 Core 1 | . . . 5 3 Treads 26 | . 28 27 9 25 Device 5 | . 11 . . 11 Storage 6 | . 14 . 6 9 Processor 2 | . . . 6 9 Protection 6 | . . 13 . 3 Energy Gun 11 | . 11 14 12 9 Ballistic Gun 12 | . 16 14 3 8 Naked Turns . | . . . . . Heaviest Build 31 | 12 18 31 22 29 Greatest Support 80 | 40 40 40 40 80 Greatest Overweight (x) 6 | 3 . . 6 1 Average Overweight (x) . | . . . . . Largest Inventory Capacity 10 | 8 8 8 10 10 Average Capacity 7 | 7 8 5 8 10 Most Carried 10 | 6 8 8 5 10 Average Carried 6 | 3 7 4 3 8 Final Capacity 10 | 8 8 5 10 10 Final Carried 8 | 6 8 4 3 7 Class Distribution -------------------- 82% | Mutant 17% | Scavenger-Mutant Dominant Class ---------------- Mutant | -10/Materials Mutant | -10/Subcaves Mutant | -8/Materials Scavenger-Mutant | -8/Storage Resources | -11 -10 -10 -8 -8 ----------- Run | Yrd Mat Sub Mat Sto Matter Collected 1212 | 211 191 101 147 562 Remotely . | . . . . . Salvage Created 2508 | . 419 355 430 1304 Parts 122 | . 25 16 15 66 Haulers Intercepted 3 | . 1 . 1 1 Recyclers Shooed 2 | . 2 . . . Parts Field Recycled . | . . . . . Retrieved Matter . | . . . . . Parts Self-Destructed 5 | . . 5 . . Prevented . | . . . . . Kills | -11 -10 -10 -8 -8 ------- Run | Yrd Mat Sub Mat Sto Combat Hostiles Destroyed 43 | . 8 8 6 21 Guns 43 | . 8 8 6 21 Classes Destroyed 10 | . 6 1 . 3 Worker 3 | . 1 . 1 1 Hauler 3 | . 1 . 1 1 Recycler 2 | . 1 . . 1 Watcher 1 | . 1 . . . Swarmer 3 | . 3 . . . Grunt 24 | . 5 1 6 12 Brawler 1 | . . . . 1 Duelist 1 | . . . . 1 Sentry 7 | . . . . 7 Subdweller 7 | . . 7 . . Thug 1 | . . . . 1 Best Kill Streak 4 | . 4 4 4 4 Combat Bots Only 4 | . 3 4 3 3 Max Kills in Single Turn 2 | . 2 1 1 1 Gunslinging 1 | . 1 . . . Exploded . | . . . . . Melee . | . . . . . Uniques/NPCs Destroyed . | . . . . . Combat | -11 -10 -10 -8 -8 -------- Run | Yrd Mat Sub Mat Sto Hostile Shots Fired 353 | . 46 21 55 231 Missed 96 | . 8 9 9 70 Damage Taken 3908 | . 310 248 742 2608 Core 606 | . 47 . 171 388 Absorbed by Shields 78 | . 78 . . . Core Remaining (%) 90 | 100 . 81 . . Volleys Fired 177 | . 28 30 32 87 Largest 2 | . 2 2 2 2 Hottest 136 | . 79 79 136 98 Shots Fired 337 | . 56 46 61 174 Gun 337 | . 56 46 61 174 Cannon . | . . . . . Launcher . | . . . . . Special . | . . . . . Kinetic 147 | . 35 16 9 87 Thermal 175 | . 21 30 37 87 Explosive . | . . . . . Electromagnetic 15 | . . . 15 . Robot Hit Streak 27 | . 8 27 8 15 Robot Miss Streak 3 | . 3 1 2 3 Penetration Max . | . . . . . Secondary Targets 14 | . 1 5 2 6 Max Gunslinging Chain 1 | . 1 1 1 1 Shots Hit Robots 240 | . 37 34 43 126 Core Hits 107 | . 21 14 22 50 Critical Kills 1 | . 1 . . . Critical Parts Destroyed 1 | . . . . 1 Critical Strikes 15 | . 2 4 3 6 Burn 13 | . 1 4 3 5 Destroy 2 | . 1 . . 1 Melee Attacks . | . . . . . Impact . | . . . . . Slashing . | . . . . . Piercing . | . . . . . Sneak Attacks . | . . . . . Combat Hostiles . | . . . . . Follow-up Attacks . | . . . . . Damage Inflicted 4353 | . 568 549 803 2433 Guns 4191 | . 568 549 803 2271 Cannons . | . . . . . Explosions 162 | . . . . 162 Melee . | . . . . . Ramming . | . . . . . Kinetic 1614 | . 355 170 94 995 Thermal 2356 | . 213 379 488 1276 Explosive 162 | . . . . 162 Electromagnetic 221 | . . . 221 . Impact . | . . . . . Slashing . | . . . . . Piercing . | . . . . . Highest Corruption . | . . . . . Average Corruption . | . . . . . Corruption Purged . | . . . . . Corruption Blocked . | . . . . . Overload Shots . | . . . . . Overflow Damage . | . . . . . Projectiles . | . . . . . Explosions . | . . . . . Melee . | . . . . . Knockbacks . | . . . . . Impact . | . . . . . Kinetic . | . . . . . Secondary . | . . . . . Self-Inflicted Damage 60 | . . . . 60 Shots 1 | . . . . 1 Rammed . | . . . . . Targets Rammed . | . . . . . Kicked . | . . . . . Crushed . | . . . . . Highest Temperature 448 | . 166 6 448 276 Average Temperature 118 | . 60 4 188 87 Received Heat Transfer 1797 | . 120 39 450 1188 Effects 9 | . . . 9 . Shutdowns 4 | . . . 4 . Energy Bleed 1 | . . . 1 . Interference 2 | . . . 2 . Short Circuit 1 | . . . 1 . Damage (minor) 1 | . . . 1 . Siege Activations . | . . . . . Robots Corrupted . | . . . . . Combat Hostiles . | . . . . . Parts Fried 1 | . . . 1 . Impact Corruptions . | . . . . . Robots Melted . | . . . . . Combat Hostiles . | . . . . . Parts Melted 6 | . 1 1 1 3 Heat Transferred 5792 | . 629 1147 1221 2795 Parts Sabotaged . | . . . . . Parts Stolen . | . . . . . Parts Stripped . | . . . . . Power Chain Reactions . | . . . . . Alert | -11 -10 -10 -8 -8 ------- Run | Yrd Mat Sub Mat Sto Peak Influence 353 | . 139 . 224 353 Initial 94 | . . . . 94 Average 121 | . 50 . 97 202 Maximum Alert Level 1 | . . . 1 1 Low Security (%) 74 | 100 100 . 83 47 Level 1 25 | . . . 16 52 Level 2 . | . . . . . Level 3 . | . . . . . Level 4 . | . . . . . Level 5 . | . . . . . High Security . | . . . . . Max Security . | . . . . . Squads Dispatched 8 | . 1 . 1 6 Investigation 3 | . 1 . . 2 Extermination . | . . . . . Reinforcement 2 | . . . 1 1 Assault 2 | . . . . 2 Garrison 1 | . . . . 1 Intercept . | . . . . . Searches Triggered . | . . . . . Construction Impeded . | . . . . . Haulers Reinforced . | . . . . . Active Scanning Responses . | . . . . . Cargo Convoy Interrupts . | . . . . . Stealth | -11 -10 -10 -8 -8 --------- Run | Yrd Mat Sub Mat Sto Distress Signals 7 | . 2 . 1 4 Communications Jammed . | . . . . . Distress Signals . | . . . . . Times Spotted 89 | . 10 20 16 43 Peak Tracking Total 10 | . 4 5 6 10 Tactical Retreats 4 | . . . 4 . Traps | -11 -10 -10 -8 -8 ------- Run | Yrd Mat Sub Mat Sto Traps Triggered 1 | . . . . 1 Indirectly . | . . . . . Trap Hack Attempts . | . . . . . Triggered . | . . . . . Disarmed . | . . . . . Reprogrammed . | . . . . . Reused . | . . . . . Traps Extracted . | . . . . . Installed . | . . . . . Triggered . | . . . . . Machines | -11 -10 -10 -8 -8 ---------- Run | Yrd Mat Sub Mat Sto Machines Disabled 2 | . . . . 2 Max in Single Turn 2 | . . . . 2 Machines Repaired . | . . . . . Machines Dismantled . | . . . . . Machines Sabotaged . | . . . . . Overloaded Fab Kills . | . . . . . Hacking | -11 -10 -10 -8 -8 --------- Run | Yrd Mat Sub Mat Sto Machines Accessed 7 | . 5 . . 2 Terminals 7 | . 5 . . 2 Fabricators . | . . . . . Repair Stations . | . . . . . Recycling Units . | . . . . . Scanalyzers . | . . . . . Garrison Access . | . . . . . Total Hacks 15 | . 9 . . 6 Successful 1 | . . . . 1 Failed 14 | . 9 . . 5 Catastrophic 8 | . 7 . . 1 Database Lockouts . | . . . . . Manual 16 | . 10 . . 6 Terminals 15 | . 9 . . 6 Fabricators . | . . . . . Repair Stations . | . . . . . Recycling Units . | . . . . . Scanalyzers . | . . . . . Garrison Access . | . . . . . Terminal Hacks 1 | . . . . 1 Intercept Status 1 | . . . . 1 Fabricator Hacks . | . . . . . Repair Station Hacks . | . . . . . Recycling Unit Hacks . | . . . . . Scanalyzer . | . . . . . Garrison Access Hacks . | . . . . . Unauthorized Hacks . | . . . . . Terminals . | . . . . . Fabricators . | . . . . . Repair Stations . | . . . . . Recycling Units . | . . . . . Scanalyzers . | . . . . . Garrison Access . | . . . . . Data Cores Recovered . | . . . . . Used . | . . . . . Hacking Detections 7 | . 5 . . 2 Full Trace Events 3 | . 1 . . 2 Feedback Events . | . . . . . Feedback Blocked . | . . . . . Robot Schematics Acquired . | . . . . . Robots Built . | . . . . . Authchips . | . . . . . Time . | . . . . . Total Robot Build Rating . | . . . . . Part Schematics Acquired . | . . . . . Parts Built . | . . . . . Authchips . | . . . . . Time . | . . . . . Total Part Build Rating . | . . . . . Parts Repaired . | . . . . . Time . | . . . . . Parts Recycled . | . . . . . Recycled Matter . | . . . . . Retrieved Matter . | . . . . . Retrieved Components . | . . . . . Parts Scanalyzed . | . . . . . Part Schematics Acquired . | . . . . . Parts Damaged . | . . . . . Bothacking | -11 -10 -10 -8 -8 ------------ Run | Yrd Mat Sub Mat Sto Used RIF Installer . | . . . . . Robots Hacked . | . . . . . Non-combat . | . . . . . Combat . | . . . . . Robot Hacks Applied . | . . . . . Relay Couplers Released . | . . . . . Fabnet Peak Effective % . | . . . . . Robots Rewired . | . . . . . Allies Hacked . | . . . . . Hacks Repelled . | . . . . . Allies | -11 -10 -10 -8 -8 -------- Run | Yrd Mat Sub Mat Sto Total Allies 2 | . . . . 2 Largest Group 2 | . . . . 2 Highest-Rated Group 62 | . . . . 62 Highest-Rated Ally 31 | . . . . 31 Total Orders . | . . . . . Ally Attacks 19 | . . . . 19 Total Damage 298 | . . . . 298 Kills 3 | . . . . 3 Allies Corrupted . | . . . . . Allies Melted . | . . . . . Intel | -11 -10 -10 -8 -8 ------- Run | Yrd Mat Sub Mat Sto Robot Analysis Total . | . . . . . Derelict Logs Recovered 1 | . . 1 . . Drone Launches . | . . . . . Drone Recoveries . | . . . . . Exploration | -11 -10 -10 -8 -8 ------------- Run | Yrd Mat Sub Mat Sto Turns Passed 4071 | 98 969 1669 265 1070 Spaces Moved 1858 | 54 291 983 131 399 Core 18 | 13 . . 5 . Treads 1704 | 41 291 983 53 336 Legs 63 | . . . . 63 Wheels . | . . . . . Hover . | . . . . . Flight 73 | . . . 73 . Fastest Speed 40 | 50 160 160 40 120 Average Speed 154 | 156 160 160 100 156 Slowest Speed 350 | 200 160 160 350 260 Overloaded Moves . | . . . . . Propulsion Burnouts . | . . . . . Robots Hopped . | . . . . . Cave-ins Triggered . | . . . . . Exploration Rate (%) 30 | 4 38 47 12 53 Regions Visited 4 Branch Regions 2 Pre-discovered Areas . | . . . . . Known Exits Taken 1 | . . . 1 . Unknown Exits Taken 3 | 1 1 1 . . Scrap Searched 5 | . . 5 . . Spaces Dug . | . . . . . Terrain Destroyed 9 | . . . . 9 Melee . | . . . . . Projectile . | . . . . . AOE 9 | . . . . 9 Terrain Rammed . | . . . . . Walls Destroyed . | . . . . . Machines Disabled . | . . . . . Actions | -11 -10 -10 -8 -8 --------- Run | Yrd Mat Sub Mat Sto Total 2734 | 65 742 1038 205 684 Wait 582 | . 402 . 19 161 Move 1854 | 53 290 982 130 399 Hop . | . . . . . Pick Up 23 | 6 7 1 3 6 Fast Attach 35 | 6 4 4 6 15 Attach 11 | . . . 5 6 Detach 13 | . 3 1 5 4 Swap 4 | . . 1 1 2 Drop 29 | . 8 13 4 4 Fire 177 | . 28 30 32 87 Melee . | . . . . . Ram . | . . . . . Kick . | . . . . . Crush . | . . . . . Escape Stasis . | . . . . . Rewire . | . . . . . Trap . | . . . . . Miscellaneous 6 | . . 6 . . Route ------- -11/Scrapyard -10/Materials (discovered 2 exits: [*Mat] / [*Sub]) -10/Subcaves -8/Materials (discovered 3 exits: Fac x2 / *Sto) -8/Storage History --------- Turn | Location | Event 15 | -11/Scrapyard | Discovered new exit (range 14) 99 | -11/Scrapyard | Entered Materials 312 | -10/Materials | Build established: Mutant 604 | -10/Materials | Discovered new exit (range 11) 1024 | -10/Materials | Discovered new exit (range 8) 1068 | -10/Materials | Entered Subcaves 1170 | -10/Subcaves | Ambushed by swarm of Subdwellers 1437 | -10/Subcaves | A swath of the cavern ceiling suddenly collapsed 1854 | -10/Subcaves | Learned 4 Materials zone layouts 1900 | -10/Subcaves | A Subdweller sparked back to life 1900 | -10/Subcaves | A Subdweller sparked back to life 1900 | -10/Subcaves | A Subdweller sparked back to life 1921 | -10/Subcaves | Found Prototype Flight Unit 1971 | -10/Subcaves | Shifting Twisted Machinery released Sub. Laser 2575 | -10/Subcaves | Discovered new exit (range 9) 2614 | -10/Subcaves | Shifting Twisted Machinery released Mak. Hammer 2658 | -10/Subcaves | Disturbed a concealed Subdweller 2737 | -10/Subcaves | Entered Materials 2737 | -8/Materials | Evolved 4 slots: Propulsion x2, Utility x2 2738 | -8/Materials | Identified exit to Factory 2738 | -8/Materials | Identified exit to Storage 2739 | -8/Materials | Identified Flightbrick 2740 | -8/Materials | Attached Flightbrick, gained temporary slots: Utility x3 3002 | -8/Materials | Entered Storage 3641 | -8/Storage | Core integrity fell below 50% 3680 | -8/Storage | Build established: Scavenger-Mutant 3772 | -8/Storage | Met a pair of Derelict thieves 3895 | -8/Storage | Lost 3 parts (2n1w) 3947 | -8/Storage | Core integrity fell below 20% 3999 | -8/Storage | Lost 6 parts (1p3n2w) 4069 | -8/Storage | Garrison activated, responded to threat 4072 | -8/Storage | Destroyed by G-47 Trooper with Particle Gun Last Messages --------------- 03984_ Acquired 21 matter. 03987_ W-25 Informer sends out distress signal. 03988_ Acquired 30 matter. 04002_ Trap Scanner destroyed. 04006_ K-01 Serf collects debris. 04018_ Acquired 3 matter. 04020_ O-16 Technician sends out distress signal. 04020_ O-16 Technician: "IFF HANDSHAKE FAILED. SECURING TERMINAL." 04026_ O-16 Technician uses terminal to summon reinforcements. 04026_ ALERT: Hostiles spotted, dispatching reinforcements to Terminal S012. 04026_ O-16 Technician locks terminal. 04058_ Connecting with Terminal... 04058_ ALERT: Suspicious activity at Terminal S002. Dispatching Investigation squad. 04063_ G-47 Trooper destroyed. 04069_ G-47 Trooper calls for garrison reinforcements. 04069_ ALERT: Activating Garrison Access S001. 04072_ G-47 Trooper destroyed. 04072_ Switching to secondary target: G-47 Trooper. Map ----- +----------------------------------------------------+ | #= # + ! ????????????????? | | /[= # ! %# #?????????????????? | | %= ^^ ^#########+## #??????????????????? | | ## ^^^ #???????# #??????????????????? | | ?# ######???????# #??????????????????? | | ?# #????????????# #??????????????????? | | ? ????????????# #???? ?????????????? | | + T ????????????# ##### """??????? | | # #???????????# G"??????? | | ## ##??????????##/##+## """??????? | | ?# #???????????# # ?????? | | ?# #???????????# """ # ????? | | ?? ????????????# """ # ????? | | ?? ????????????# """ # ?????? | | ?? ????????????# # ?????? | | ?? ??????????#?# # g ##T???????? | | ?????????????# ##/##### #?????????? | | ?????????????+ #?????????? | | ?????????????# #?????????? | | ?????????????# ###???????? | | ?????????????# +???????? | | ?????????????# g ######???????? | | ?????????????# #######g##????????????? | | ?????????????# #?????#g#?????????????? | | ?????????????#+##+#?????#g#?????????????? | | ??????????????????????###@#######???????? | | ??????????????????????# *=! #???????? | | ??????????????????????#* ""T"" #???????? | | ??????????????????????# """"" #???????? | | ??????????????????????# #???????? | | ??????????????????????###########???????? | | ????????????????????????????????????????? | | ????????????????????????????????????????? | | ????????????????????????????????????????? | | ????????????????????????????????????????? | | ????????????????????????????????????????? | | ????????????????????????????????????????? | | ????????????????????????????????????????? | | ????????????????????????????????????????? | | ????????????????????????????????????????? | | ????????????????????????????????????????? | | ????????????????????????????????????????? | | ????????????????????????????????????????? | | ????????????????????????????????????????? | | ????????????????????????????????????????? | | ????????????????????????????????????????? | | ????????????????????????????????????????? | | ????????????????????????????????????????? | | ????????????????????????????????????????? | | | +----------------------------------------------------+ Best States ------------- Heat Dissipation 50 Energy Generation 18 Energy Capacity 280 Matter Stores 300 Matter Capacity 300 Sight Range 16 Terrain Scan Density 10 Armor Coverage 800 Evasion (%) 62 Recoil Reduction 4 Item Schematics ----------------- None Robot Schematics ------------------ None Fabricated ------------ Nothing Alien Tech Used ----------------- None Achievements -------------- None Challenges ------------ None Game ------ Seed NullSpliceActivator Manual? 0 Play Time 00:29:32 Cumulative 20.6 hours Start 2024.04.12 @ 14:11:22 End 2024.04.12 @ 14:39:01 Sessions 1 Manual Loads 0 Difficulty Rogue Special Mode None Game No. 45 Rogue 40 Adventurer 5 Explorer 0 Win Type - Total 0 Types 0/0/0/0/0/0/0/0/0 Lore% 7 Gallery% 30 Achievement% 20 Wizard Run 0 Options --------- Layout 0 ASCII 0 Keyboard 0 Movement Mouse Keybinds 0 Fullscreen 2 Font 24/Smallcaps Map View 76x50 Zoom Use 71% Tactical HUD 1 Map Filters NONE Filters NONE Steam 1 RUN: f0b37e69-4d74-491f-9ddf-c075262f14b0